Cogmind - Beta 16 @@@ ROGUE MODE // 2025.11.28 @ 00:01:01 Player: Ayera Result: Destroyed by 4W-Y7O(R) with Subdweller Shrapnel Launcher Performance ------------- Evolutions (0) 0 Regions Visited (3) 600 Robots Destroyed (19) 95 Value Destroyed (337) 337 Prototype IDs (0) 0 Alien Tech Used (0) 0 Bonus (7) 7 TOTAL SCORE: 1039 Bonus ------- Follower Combat Kills 7 Cogmind --------- Core Integrity 0/250 Matter 296/300 Energy 160/160 System Corruption 0% Temperature Cool (0) Movement Rolling (135) Ox3 Location -10/Subcaves Parts ------- > --- POWER (1) -------- Light Nuclear Core > --- PROPULSION (2) --- Wheel Compact Wheel > --- UTILITY (2) ------ Huge Storage Unit > --- WEAPON (2) ------- Assault Rifle Light Assault Rifle > --- INVENTORY (25) --- Small Storage Unit High-capacity Storage Unit Scrap Shield Peak State ------------ > --- POWER ------------ Ion Engine > --- PROPULSION ------- Compact Wheel Compact Wheel > --- UTILITY ---------- Huge Storage Unit Sensor Array > --- WEAPON ----------- Medium Laser Rocket Launcher > --- INVENTORY -------- Small Storage Unit High-capacity Storage Unit Assault Rifle [Rating: 8] Favorites ----------- Power Ion Engine Engine Ion Engine Power Core Light Nuclear Core Propulsion Compact Wheel Wheel Compact Wheel Utility Huge Storage Unit Device Sensor Array Storage Huge Storage Unit Weapon Assault Rifle Energy Gun Medium Laser Ballistic Gun Assault Rifle Launcher Rocket Launcher Build | -11 -10 -10 -10 ------- Run | Yrd Mat Min Sub Slots Evolved . | . . . . Power . | . . . . Propulsion . | . . . . Utility . | . . . . Weapon . | . . . . Parts Attached 13 | 6 3 4 . Power 2 | 1 . 1 . Engine 1 | 1 . . . Core 1 | . . 1 . Reactor . | . . . . Propulsion 3 | 2 . 1 . Treads . | . . . . Leg . | . . . . Wheel 3 | 2 . 1 . Hover . | . . . . Flight . | . . . . Utility 4 | 1 3 . . Device 1 | . 1 . . Storage 3 | 1 2 . . Processor . | . . . . Hackware . | . . . . Protection . | . . . . Artifact . | . . . . Weapon 4 | 2 . 2 . Energy Gun 1 | 1 . . . Energy Cannon . | . . . . Ballistic Gun 2 | 1 . 1 . Ballistic Cannon . | . . . . Launcher 1 | . . 1 . Special Weapon . | . . . . Impact Weapon . | . . . . Slashing Weapon . | . . . . Piercing Weapon . | . . . . Special Melee Weapon . | . . . . Unidentified Prototypes . | . . . . Parts Lost 5 | . . 5 . Power 1 | . . 1 . Propulsion 1 | . . 1 . Utility 1 | . . 1 . Weapon 2 | . . 2 . Highest Loss Streak 2 | . . 2 . To Critical Strikes . | . . . . Average Backups 2 | 1 . 2 2 Power . | . . . . Propulsion . | . . . . Utility 1 | . . 2 2 Weapon . | . . . . Tool/Special . | . . . . Unused Backups 3 | . 1 1 1 Power 1 | . 1 . . Propulsion 1 | . . 1 . Utility 1 | . . . 1 Weapon . | . . . . Tool/Special . | . . . . Average Slot Usage (%) 85 | . 96 84 85 Engine 7 | . 14 8 . Core 5 | . . 4 14 Wheel 22 | . 28 20 28 Device 7 | . 10 8 . Storage 14 | . 14 14 14 Energy Gun 6 | . 14 6 . Ballistic Gun 17 | . 14 15 28 Launcher 3 | . . 5 . Peak Build Rating 8 | 6 7 8 8 Average Rating 7 | 3 6 7 8 On Entrance 5 | . 6 7 8 Avg Prop Armor Cover (%) . | . . . . Naked Turns . | . . . . Heaviest Build 92 | 14 90 92 88 Greatest Support 32 | 32 32 32 26 Greatest Overweight (x) 5 | . 2 5 3 Average Overweight (x) 2 | . . 3 3 Largest Inventory Capacity 25 | 8 25 25 25 Average Capacity 23 | 7 12 25 25 Most Carried 4 | 4 2 4 4 Average Carried 2 | 1 . 2 3 Final Capacity 25 | 8 25 25 25 Final Carried 4 | 1 2 2 4 Class Distribution -------------------- 100% | Mutant Dominant Class ---------------- Mutant | -10/Materials Mutant | -10/Mines Mutant | -10/Subcaves Resources | -11 -10 -10 -10 ----------- Run | Yrd Mat Min Sub Matter Collected 535 | 257 . 269 9 Remotely . | . . . . Salvage Created 323 | . . 323 . Parts 27 | . . 27 . Haulers Intercepted . | . . . . Recyclers Shooed . | . . . . Parts Field Recycled . | . . . . Retrieved Matter . | . . . . Parts Self-Destructed . | . . . . Prevented . | . . . . Parts Restored . | . . . . Kills | -11 -10 -10 -10 ------- Run | Yrd Mat Min Sub Combat Hostiles Destroyed 13 | . . 13 . Guns 7 | . . 7 . AOE 6 | . . 6 . Classes Destroyed 4 | . . 4 . Builder 1 | . . 1 . Tunneler 5 | . . 5 . Swarmer 7 | . . 7 . Grunt 6 | . . 6 . Best Kill Streak 7 | . . 7 . Combat Bots Only 5 | . . 5 . Max Kills in Single Turn 2 | . . 2 . Gunslinging . | . . . . Exploded 2 | . . 2 . Melee . | . . . . Uniques/NPCs Destroyed . | . . . . Combat | -11 -10 -10 -10 -------- Run | Yrd Mat Min Sub Hostile Shots Fired 89 | . 9 78 2 Missed 31 | . 2 28 1 Hits 58 | . 7 50 1 Projectile 58 | . 7 50 1 AOE 1 | . . . 1 Critical Strikes 1 | . . 1 . Damage Taken 700 | . 53 585 62 Core 270 | . 25 183 62 Absorbed by Shields . | . . . . Core Remaining (%) 100 | 100 . . . Volleys Fired 52 | . . 51 1 Largest 2 | . . 2 2 Hottest 83 | . . 83 40 Shots Fired 84 | . . 82 2 Gun 74 | . . 72 2 Cannon . | . . . . Launcher 10 | . . 10 . Special . | . . . . Kinetic 51 | . . 49 2 Thermal 23 | . . 23 . Explosive 10 | . . 10 . Electromagnetic . | . . . . Robot Hit Streak 5 | . . 5 1 Robot Miss Streak 5 | . . 5 1 Penetration Max . | . . . . Secondary Targets . | . . . . Shots Hit Robots 37 | . . 36 1 Core Hits 24 | . . 24 . Critical Kills 1 | . . 1 . Critical Parts Destroyed . | . . . . Critical Strikes 1 | . . 1 . Destroy 1 | . . 1 . Melee Attacks . | . . . . Impact . | . . . . Slashing . | . . . . Piercing . | . . . . Sneak Attacks . | . . . . Combat Hostiles . | . . . . Follow-up Attacks . | . . . . Damage Inflicted 1121 | . . 1110 11 Guns 381 | . . 370 11 Cannons . | . . . . Explosions 699 | . . 699 . Melee . | . . . . Ramming 41 | . . 41 . Kinetic 208 | . . 197 11 Thermal 173 | . . 173 . Explosive 699 | . . 699 . Electromagnetic . | . . . . Impact . | . . . . Slashing . | . . . . Piercing . | . . . . Highest Corruption . | . . . . Average Corruption . | . . . . Corruption Purged . | . . . . Corruption Blocked . | . . . . Overload Shots . | . . . . Overflow Damage 26 | . . 26 . Projectiles . | . . . . Explosions 2 | . . 2 . Melee 24 | . . 24 . Knockbacks . | . . . . Impact . | . . . . Kinetic . | . . . . Secondary . | . . . . Self-Inflicted Damage 110 | . . 110 . Shots 3 | . . 3 . Rammed 2 | . . 2 . Targets Rammed 2 | . . 2 . Kicked . | . . . . Crushed . | . . . . Highest Temperature 75 | . . 75 . Average Temperature 21 | . . 21 . Received Heat Transfer 117 | . . 117 . Siege Activations . | . . . . Martial Activations . | . . . . Shielding Activations . | . . . . Robots Disrupted . | . . . . Combat Hostiles . | . . . . Robots Corrupted . | . . . . Combat Hostiles . | . . . . Parts Fried . | . . . . Impact Corruptions 1 | . . 1 . Robots Melted . | . . . . Combat Hostiles . | . . . . Parts Melted 1 | . . 1 . Heat Transferred 518 | . . 518 . Parts Sabotaged . | . . . . Parts Stolen . | . . . . Parts Stripped . | . . . . Power Chain Reactions . | . . . . Alert | -11 -10 -10 -10 ------- Run | Yrd Mat Min Sub Maximum Alert Level 1 | . . 1 . Low Security (%) 78 | 100 100 74 . Level 1 21 | . . 25 . Level 2 . | . . . . Level 3 . | . . . . Level 4 . | . . . . Level 5 . | . . . . High Security . | . . . . Max Security . | . . . . Peak Influence 234 | . . 234 . Initial . | . . . . Average 127 | . . 151 . Influence Increases 507 | . . 507 . Destroy 0b10 Robot/C 280 | . . 280 . Destroy 0b10 Robot/NC 30 | . . 30 . Destroy Leader 30 | . . 30 . Allied During Kill 1 | . . 1 . Disable Machine 15 | . . 15 . Destroy Structure 61 | . . 61 . Lose Combat Pursuer 90 | . . 90 . Influence Decreases 507 | . . 364 143 Entered New Map 75 | . . . 75 Time Decay 382 | . . 314 68 Lost Part 50 | . . 50 . Squads Dispatched . | . . . . Investigation . | . . . . Extermination . | . . . . Reinforcement . | . . . . Assault . | . . . . Garrison . | . . . . Intercept . | . . . . Searches Triggered . | . . . . Construction Impeded . | . . . . Haulers Reinforced . | . . . . Active Scanning Responses . | . . . . Cargo Convoy Interrupts . | . . . . Stealth | -11 -10 -10 -10 --------- Run | Yrd Mat Min Sub Distress Signals 1 | . . 1 . Communications Jammed . | . . . . Distress Signals . | . . . . Times Spotted 24 | . 4 17 3 Peak Tracking Total 9 | . 5 3 9 Tactical Retreats 4 | . . 4 . Traps | -11 -10 -10 -10 ------- Run | Yrd Mat Min Sub Traps Triggered . | . . . . Indirectly . | . . . . Trap Hack Attempts . | . . . . Triggered . | . . . . Disarmed . | . . . . Reprogrammed . | . . . . Reused . | . . . . Traps Extracted . | . . . . Installed . | . . . . Triggered . | . . . . Machines | -11 -10 -10 -10 ---------- Run | Yrd Mat Min Sub Machines Disabled 1 | . . 1 . Max in Single Turn 1 | . . 1 . Machines Repaired . | . . . . Machines Dismantled . | . . . . Machines Sabotaged . | . . . . Overloaded Fab Kills . | . . . . Hacking | -11 -10 -10 -10 --------- Run | Yrd Mat Min Sub Machines Accessed 1 | . 1 . . Terminals . | . . . . Fabricators . | . . . . Repair Stations . | . . . . Recycling Units 1 | . 1 . . Scanalyzers . | . . . . Garrison Access . | . . . . Total Hacks 4 | . 4 . . Successful 1 | . 1 . . Failed 3 | . 3 . . Catastrophic . | . . . . Database Lockouts . | . . . . Manual . | . . . . Terminals . | . . . . Fabricators . | . . . . Repair Stations . | . . . . Recycling Units 4 | . 4 . . Scanalyzers . | . . . . Garrison Access . | . . . . Terminal Hacks . | . . . . Fabricator Hacks . | . . . . Repair Station Hacks . | . . . . Recycling Unit Hacks 1 | . 1 . . Recycle Component 1 | . 1 . . Scanalyzer . | . . . . Garrison Access Hacks . | . . . . Unauthorized Hacks . | . . . . Terminals . | . . . . Fabricators . | . . . . Repair Stations . | . . . . Recycling Units . | . . . . Scanalyzers . | . . . . Garrison Access . | . . . . Data Cores Recovered . | . . . . Used . | . . . . Hacking Detections 1 | . 1 . . Full Trace Events . | . . . . Feedback Events . | . . . . Feedback Blocked . | . . . . Robot Schematics Acquired . | . . . . Robots Built . | . . . . Authchips . | . . . . Time . | . . . . Total Robot Build Rating . | . . . . Part Schematics Acquired . | . . . . Parts Built . | . . . . Authchips . | . . . . Time . | . . . . Total Part Build Rating . | . . . . Part Studies Acquired . | . . . . Parts Repaired . | . . . . Time . | . . . . Parts Recycled 1 | . 1 . . Recycled Matter . | . . . . Retrieved Matter . | . . . . Retrieved Components . | . . . . Parts Scanalyzed . | . . . . Part Schematics Acquired . | . . . . Parts Damaged . | . . . . Bothacking | -11 -10 -10 -10 ------------ Run | Yrd Mat Min Sub Used RIF Installer . | . . . . Robots Hacked . | . . . . Non-combat . | . . . . Combat . | . . . . Robot Hacks Applied . | . . . . Relay Couplers Released . | . . . . Fabnet Peak Effective % . | . . . . Robots Rewired . | . . . . Allies Hacked . | . . . . Hacks Repelled . | . . . . Allies | -11 -10 -10 -10 -------- Run | Yrd Mat Min Sub Total Allies 2 | . . 2 . Largest Group 2 | . . 2 1 Highest-Rated Group 44 | . . 44 31 Highest-Rated Ally 31 | . . 31 31 Total Orders . | . . . . Ally Attacks 7 | . . 5 2 Total Damage 102 | . . 61 41 Kills 2 | . . 2 . Allies Corrupted . | . . . . Allies Melted . | . . . . Intel | -11 -10 -10 -10 ------- Run | Yrd Mat Min Sub Active Infowar (turns) 631 | . 89 542 . Sensors 631 | . 89 542 . Robot Analysis Total . | . . . . Derelict Logs Recovered 3 | . . 1 2 Drone Launches . | . . . . Drone Recoveries . | . . . . Exploration | -11 -10 -10 -10 ------------- Run | Yrd Mat Min Sub Turns Passed 1219 | 48 115 879 177 Spaces Moved 750 | 44 103 474 129 Core 18 | 18 . . . Treads . | . . . . Legs . | . . . . Wheels 732 | 26 103 474 129 Hover . | . . . . Flight . | . . . . Fastest Speed 50 | 50 100 130 135 Average Speed 136 | 79 105 149 135 Slowest Speed 175 | 100 130 175 135 Overloaded Moves . | . . . . Propulsion Burnouts . | . . . . Robots Hopped . | . . . . Potential Cave-ins . | . . . . Cave-ins Triggered . | . . . . Exploration Rate (%) 24 | 4 19 64 11 Regions Visited 3 Branch Regions 2 Pre-discovered Areas 2 | . . 1 1 Known Exits Taken . | . . . . Unknown Exits Taken 3 | 1 1 1 . Scrap Searched 2 | . . 2 . Spaces Dug . | . . . . Terrain Destroyed 93 | . . 93 . Melee . | . . . . Projectile . | . . . . AOE 93 | . . 93 . Terrain Rammed . | . . . . Walls Destroyed . | . . . . Machines Disabled . | . . . . Actions | -11 -10 -10 -10 --------- Run | Yrd Mat Min Sub Total 861 | 56 108 566 131 Wait 29 | . . 29 . Move 747 | 43 102 473 129 Hop . | . . . . Pick Up 16 | 7 3 5 1 Fast Attach . | . . . . Attach 11 | 6 1 4 . Detach . | . . . . Swap 3 | . 2 1 . Drop 1 | . . 1 . Fire 52 | . . 51 1 Melee . | . . . . Ram 2 | . . 2 . Kick . | . . . . Crush . | . . . . Escape Stasis . | . . . . Rewire . | . . . . Trap . | . . . . Miscellaneous . | . . . . Route ------- -11/Scrapyard -10/Materials -10/Mines -10/Subcaves History --------- Turn | Location | Event 4 | -11/Scrapyard | Discovered new exit (range 16) 49 | -11/Scrapyard | Entered Materials 151 | -10/Materials | Discovered new exit (range 7) 164 | -10/Materials | Entered Mines 181 | -10/Mines | Received a Rocket Launcher from a helpful Derelict 259 | -10/Mines | Excavation squad dispatched 259 | -10/Mines | A large section of the Mines collapsed 304 | -10/Mines | Build established: Mutant 558 | -10/Mines | Core integrity fell below 50% 979 | -10/Mines | Core integrity fell below 20% 1001 | -10/Mines | Discovered new exit (range 6) 1043 | -10/Mines | Entered Subcaves 1043 | -10/Subcaves | Accompanied by 1 ally 1048 | -10/Subcaves | Led the pair of lost Derelicts to an unsafe place 1062 | -10/Subcaves | Learned Materials stockpile data 1144 | -10/Subcaves | Learned location of Storage (-9) 1214 | -10/Subcaves | Ambushed by swarm of Subdwellers 1220 | -10/Subcaves | Destroyed by 4W-Y7O(R) with Subdweller Shrapnel Launcher Last Messages --------------- where we left..." 01049_ MG-QMZ(h) drops a Scrap Shield: "Protect yourself with this!" 01053_ KN-VIS(g): "Following you was a bad idea, I think." 01053_ Acquired Scrap Shield. 01062_ Acquired derelict log, extracted data. Data stored: Materials stockpile data. 01070_ Acquired 7 matter. 01113_ KN-VIS(g) triggered Piercing Trap. 01113_ Spikes shoot up from the floor. 01144_ Acquired derelict log, extracted data. World map updated: -9/Storage. 01166_ Acquired 2 matter. 01193_ KN-VIS(g): "Terrible idea. Terrible." 01214_ MG-QMZ(h): "The Subs are coming!" 01214_ Subatomizers dissect the Wheel. 01217_ HV Slug penetrates 3H-RFL(R). 01217_ 3H-RFL(R) knocked back. 01218_ KN-VIS(g) destroyed. Map ----- +----------------------------------------------------+ | ??????????## # #??????# #????????? | | ?????????## ### ########## #?????????? | | ?????##### ### # # ## #???????#??? | | ?????# ## # #?????? ??? | | ?????## ####### ##???# ?? | | ??????## #?????### # ## ## # ## ##?## ? | | ???????####???????############### ## ? | | ???????????###???## ########### #???? | | ????????#### ##??# # #??????? | | ???????## ##?# ##??????? | | ???????# ### ###???????? | | ???????# # ## ###?????????? | | ??????????# ## ## ##???????????? | | ?????###??# ##### #? #????????????? | | ?????# #### #####???###? #????????????? | | ?????# % ##????????### #????????????? | | ????# ## ##???????## ###????????????? | | ????# ### #???????# ????????????????? | | ????# #?# ####??????# ???## ??????????? | | ????# ### #?## #??????### ??%*= ??????????? | | ????##??###??# #?????## #?? ] ??????????? | | ?????????????# #????## ## ?????????? | | ?????????????# ##???# R ?????????? | | ?????????????# #??## ???????????? | | ????????###??### #### #????????????????? | | ???????## ### ## @ #???????????????????? | | ???????# [R ######???????????????????? | | ?? R =% ##????????????????????????? | | ?? ## ####?????????????????????????? | | ?? #?####????????????????????????????? | | ??? #??????????????????????????????????? | | ???#" #???????????????????????????????????? | | ????# ????????????????????????????????????? | | ????# ?????????????????????????????????????? | | ????? ??????????????????????????????????????? | | ?????? ???????????????????????????????????????? | | ?????? ???????????????????????????????????????? | | ???????? ????????????????????????????????????????? | | ?????????????????????????????????????????????????? | | ?????????????????????????????????????????????????? | | ?????????????????????????????????????????????????? | | ?????????????????????????????????????????????????? | | ?????????????????????????????????????????????????? | | ?????????????????????????????????????????????????? | | ?????????????????????????????????????????????????? | | ?????????????????????????????????????????????????? | | ?????????????????????????????????????????????????? | | ?????????????????????????????????????????????????? | | ?????????????????????????????????????????????????? | | ?????????????????????????????????????????????????? | +----------------------------------------------------+ Best States ------------- Heat Dissipation 25 Energy Generation 14 Energy Capacity 250 Matter Stores 300 Matter Capacity 300 Sight Range 16 Robot Scan Range 14 Terrain Scan Density 10 Evasion (%) 50 Item Schematics ----------------- None Robot Schematics ------------------ None Fabricated ------------ Nothing Repaired ---------- Nothing Studied --------- None Alien Tech Used ----------------- None Achievements -------------- For Emergencies Only Challenges ------------ None Game ------ Seed CobblerBottomlessThruster Manual? 0 Play Time 00:13:18 Cumulative 24.6 hours Start 2025.11.27 @ 23:49:08 End 2025.11.28 @ 00:01:01 Sessions 1 Manual Loads 0 Difficulty Rogue Special Mode None Game No. 46 Rogue 46 Adventurer 0 Explorer 0 Win Type - Total 0 Types 0/0/0/0/0/0/0/0/0/0 Lore% 10 Gallery% 24 Achievement% 13 Wizard Run 0 Options --------- Layout 1 ASCII 0 Keyboard 0 Movement Numpad Keybinds 0 Fullscreen 1 Font 32/SmallcapsGlow Map View 50x40 Zoom Use 0% Tactical HUD 1 Map Filters NONE Filters NONE Steam 1 RUN: ab586c55-c152-46de-a8ce-7d6a3aee1d44